[Event "Titled Tuesday Blitz January 25 2022"]
[White "Urazayev, Arystanbek"]
[Black "Ambartsumova, Karina"]
[WhiteFideId "13709810"]
[BlackFideId "4166299"]
[WhiteElo "2321"]
[BlackElo "2262"]
[Result "1-0"]
[Round "07"]
[TimeControl "180+1"]
[Date "2022.01.26"]
[WhiteClock "0:00:10"]
[BlackClock "0:00:04"]

1. c4 {[%clk 0:03:00]}  e6 {[%clk 0:02:57]} 2. Nf3 {[%clk 0:03:00]}  Nf6 {[%clk 0:02:56]} 3. e3 {[%clk 0:03:00]}  d5 {[%clk 0:02:56]} 4. Nc3 {[%clk 0:03:01]}  Be7 {[%clk 0:02:55]} 5. b3 {[%clk 0:03:01]}  b6 {[%clk 0:02:54]} 6. Bb2 {[%clk 0:03:02]}  Bb7 {[%clk 0:02:54]} 7. Be2 {[%clk 0:02:52]}  Nbd7 {[%clk 0:02:54]} 8. O-O {[%clk 0:02:52]}  O-O {[%clk 0:02:52]} 9. Rc1 {[%clk 0:02:52]}  c5 {[%clk 0:02:45]} 10. cxd5 {[%clk 0:02:53]}  Nxd5 {[%clk 0:02:43]} 11. d4 {[%clk 0:02:47]}  N5f6 {[%clk 0:02:22]} 12. Qc2 {[%clk 0:02:35]}  cxd4 {[%clk 0:02:10]} 13. Nxd4 {[%clk 0:02:35]}  Rc8 {[%clk 0:02:09]} 14. Rfd1 {[%clk 0:02:35]}  Qc7 {[%clk 0:01:56]} 15. Qb1 {[%clk 0:02:17]}  Qb8 {[%clk 0:01:52]} 16. Qa1 {[%clk 0:02:11]}  Ne5 {[%clk 0:01:26]} 17. h3 {[%clk 0:02:11]}  Qa8 {[%clk 0:01:24]} 18. Bf1 {[%clk 0:02:11]}  Ng6 {[%clk 0:01:21]} 19. Nce2 {[%clk 0:01:51]}  Nh4 {[%clk 0:01:17]} 20. g3 {[%clk 0:01:39]}  Nf3+ {[%clk 0:01:12]} 21. Nxf3 {[%clk 0:01:39]}  Bxf3 {[%clk 0:01:12]} 22. Rxc8 {[%clk 0:01:39]}  Rxc8 {[%clk 0:01:12]} 23. Rc1 {[%clk 0:01:40]}  Rd8 {[%clk 0:01:08]} 24. Nd4 {[%clk 0:01:40]}  Bd5 {[%clk 0:01:04]} 25. Nb5 {[%clk 0:01:30]}  Ne8 {[%clk 0:00:54]} 26. Be5 {[%clk 0:01:20]}  Rc8 {[%clk 0:00:51]} 27. Rxc8 {[%clk 0:01:18]}  Qxc8 {[%clk 0:00:52]} 28. Nxa7 {[%clk 0:01:18]}  Qc2 {[%clk 0:00:51]} 29. Bg2 {[%clk 0:00:52]}  Bxg2 {[%clk 0:00:51]} 30. Kxg2 {[%clk 0:00:53]}  Bc5 {[%clk 0:00:51]} 31. Bd4 {[%clk 0:00:45]}  Qe4+ {[%clk 0:00:43]} 32. Kg1 {[%clk 0:00:45]}  h5 {[%clk 0:00:17]} 33. h4 {[%clk 0:00:41]}  Qc2 {[%clk 0:00:10]} 34. Bxc5 {[%clk 0:00:39]}  bxc5 {[%clk 0:00:10]} 35. a4 {[%clk 0:00:29]}  Nf6 {[%clk 0:00:10]} 36. a5 {[%clk 0:00:29]}  Ng4 {[%clk 0:00:10]} 37. Qf1 {[%clk 0:00:27]}  Qxb3 {[%clk 0:00:09]} 38. a6 {[%clk 0:00:28]}  Qa2 {[%clk 0:00:10]} 39. Nc6 {[%clk 0:00:26]}  c4 {[%clk 0:00:09]} 40. a7 {[%clk 0:00:26]}  c3 {[%clk 0:00:09]} 41. f3 {[%clk 0:00:14]}  Nxe3 {[%clk 0:00:09]} 42. Qf2 {[%clk 0:00:15]}  Qa1+ {[%clk 0:00:09]} 43. Kh2 {[%clk 0:00:15]}  c2 {[%clk 0:00:08]} 44. Qxe3 {[%clk 0:00:15]}  c1=Q {[%clk 0:00:05]} 45. a8=Q+ {[%clk 0:00:14]}  Qxa8 {[%clk 0:00:04]} 46. Qxc1 {[%clk 0:00:14]}  Qa2+ {[%clk 0:00:01]} 47. Kh3 {[%clk 0:00:14]}  Qd5 {[%clk 0:00:02]} 48. Qc3 {[%clk 0:00:11]}  Qf5+ {[%clk 0:00:02]} 49. Kg2 {[%clk 0:00:11]}  Kh8 {[%clk 0:00:01]} 50. Nd4 {[%clk 0:00:11]}  Qd5 {[%clk 0:00:01]} 51. Ne2 {[%clk 0:00:11]}  Qa2 {[%clk 0:00:01]} 52. Qe3 {[%clk 0:00:11]}  g6 {[%clk 0:00:01]} 53. Kf2 {[%clk 0:00:11]}  Kh7 {[%clk 0:00:02]} 54. Qe5 {[%clk 0:00:10]}  Qc2 {[%clk 0:00:01]} 55. Qd4 {[%clk 0:00:09]}  Kg8 {[%clk 0:00:02]} 56. Qc3 {[%clk 0:00:09]}  Qa2 {[%clk 0:00:02]} 57. Ke3 {[%clk 0:00:10]}  Kh7 {[%clk 0:00:02]} 58. Qd2 {[%clk 0:00:10]}  Qa3+ {[%clk 0:00:03]} 59. Kf2 {[%clk 0:00:10]}  Qa7+ {[%clk 0:00:03]} 60. Kg2 {[%clk 0:00:11]}  Qa2 {[%clk 0:00:04]} 61. Qxa2 {[%clk 0:00:10]} 1-0


[Site "https://www.chess.com"]

[Event "Titled Tuesday Blitz January 25 2022"]
[White "Vakhlamov, Igor L."]
[Black "Zakhartsov, Vladimir"]
[WhiteFideId "24126748"]
[BlackFideId "4145097"]
[WhiteElo "2401"]
[BlackElo "2432"]
[Result "0-1"]
[Round "07"]
[TimeControl "180+1"]
[Date "2022.01.26"]
[WhiteClock "0:00:02"]
[BlackClock "0:00:09"]

1. e4 {[%clk 0:03:00]}  e5 {[%clk 0:02:55]} 2. Nf3 {[%clk 0:03:01]}  d6 {[%clk 0:02:55]} 3. d4 {[%clk 0:02:57]}  Nd7 {[%clk 0:02:55]} 4. Bc4 {[%clk 0:02:56]}  Be7 {[%clk 0:02:52]} 5. dxe5 {[%clk 0:02:54]}  dxe5 {[%clk 0:02:48]} 6. Ng5 {[%clk 0:02:53]}  Bxg5 {[%clk 0:02:43]} 7. Qh5 {[%clk 0:02:53]}  Qe7 {[%clk 0:02:40]} 8. Qxg5 {[%clk 0:02:49]}  Qxg5 {[%clk 0:02:35]} 9. Bxg5 {[%clk 0:02:50]}  f6 {[%clk 0:02:35]} 10. Be3 {[%clk 0:02:49]}  Nb6 {[%clk 0:02:29]} 11. Bb3 {[%clk 0:02:44]}  Ne7 {[%clk 0:02:25]} 12. Nc3 {[%clk 0:02:42]}  Bd7 {[%clk 0:02:25]} 13. a4 {[%clk 0:02:36]}  a5 {[%clk 0:02:24]} 14. f3 {[%clk 0:02:30]}  O-O-O {[%clk 0:02:23]} 15. Nb5 {[%clk 0:02:25]}  Kb8 {[%clk 0:02:12]} 16. Kf2 {[%clk 0:02:00]}  Nbc8 {[%clk 0:02:02]} 17. Rhd1 {[%clk 0:01:56]}  b6 {[%clk 0:01:57]} 18. c4 {[%clk 0:01:37]}  c5 {[%clk 0:01:52]} 19. Nd6 {[%clk 0:01:29]}  Nxd6 {[%clk 0:01:46]} 20. Rxd6 {[%clk 0:01:30]}  Kc7 {[%clk 0:01:46]} 21. Rad1 {[%clk 0:01:29]}  Nc6 {[%clk 0:01:47]} 22. R6d3 {[%clk 0:01:20]}  Nd4 {[%clk 0:01:41]} 23. Ra1 {[%clk 0:01:20]}  Be6 {[%clk 0:01:37]} 24. Rc1 {[%clk 0:01:09]}  Rd6 {[%clk 0:01:34]} 25. Ba2 {[%clk 0:01:08]}  Rhd8 {[%clk 0:01:33]} 26. b3 {[%clk 0:01:08]}  g6 {[%clk 0:01:09]} 27. Rcd1 {[%clk 0:01:05]}  f5 {[%clk 0:01:07]} 28. Bg5 {[%clk 0:00:57]}  Re8 {[%clk 0:01:05]} 29. exf5 {[%clk 0:00:40]}  gxf5 {[%clk 0:01:04]} 30. Re1 {[%clk 0:00:36]}  Bf7 {[%clk 0:01:04]} 31. Bc1 {[%clk 0:00:26]}  Bg6 {[%clk 0:00:59]} 32. Rdd1 {[%clk 0:00:26]}  Kb7 {[%clk 0:00:55]} 33. g3 {[%clk 0:00:25]}  Rde6 {[%clk 0:00:53]} 34. f4 {[%clk 0:00:14]}  Bh5 {[%clk 0:00:46]} 35. Rd3 {[%clk 0:00:11]}  exf4 {[%clk 0:00:45]} 36. Rxe6 {[%clk 0:00:12]}  Rxe6 {[%clk 0:00:46]} 37. Rd2 {[%clk 0:00:09]}  Re3 {[%clk 0:00:29]} 38. gxf4 {[%clk 0:00:06]}  Rf3+ {[%clk 0:00:29]} 39. Kg2 {[%clk 0:00:06]}  Rxf4 {[%clk 0:00:29]} 40. Rf2 {[%clk 0:00:04]}  Rg4+ {[%clk 0:00:26]} 41. Kf1 {[%clk 0:00:03]}  Rg6 {[%clk 0:00:17]} 42. Be3 {[%clk 0:00:03]}  Nf3 {[%clk 0:00:11]} 43. Bb1 {[%clk 0:00:03]}  Bg4 {[%clk 0:00:09]} 44. Bf4 {[%clk 0:00:02]}  Re6 {[%clk 0:00:08]} 45. Bd3 {[%clk 0:00:02]}  Re1+ {[%clk 0:00:08]} 46. Kg2 {[%clk 0:00:02]}  Rg1# {[%clk 0:00:09]} 0-1


[Site "https://www.chess.com"]

[Event "Titled Tuesday Blitz January 25 2022"]
[White "Vokhidov, Shamsiddin"]
[Black "Hjartarson, Johann"]
[WhiteFideId "14204223"]
[BlackFideId "2300044"]
[WhiteElo "2611"]
[BlackElo "2484"]
[Result "1-0"]
[Round "07"]
[TimeControl "180+1"]
[Date "2022.01.26"]
[WhiteClock "0:00:41"]
[BlackClock "0:00:31"]

1. e4 {[%clk 0:03:00]}  g6 {[%clk 0:02:59]} 2. d4 {[%clk 0:03:00]}  Bg7 {[%clk 0:02:59]} 3. Nf3 {[%clk 0:03:01]}  d6 {[%clk 0:02:59]} 4. Bc4 {[%clk 0:03:01]}  e6 {[%clk 0:02:58]} 5. Qe2 {[%clk 0:03:01]}  a6 {[%clk 0:02:57]} 6. c3 {[%clk 0:03:01]}  b5 {[%clk 0:02:56]} 7. Bd3 {[%clk 0:03:01]}  Bb7 {[%clk 0:02:56]} 8. a4 {[%clk 0:03:01]}  c6 {[%clk 0:02:54]} 9. Nbd2 {[%clk 0:02:56]}  Nd7 {[%clk 0:02:54]} 10. O-O {[%clk 0:02:52]}  Ne7 {[%clk 0:02:53]} 11. b3 {[%clk 0:02:48]}  O-O {[%clk 0:02:51]} 12. Bb2 {[%clk 0:02:48]}  Nb6 {[%clk 0:02:45]} 13. c4 {[%clk 0:02:46]}  bxa4 {[%clk 0:02:39]} 14. bxa4 {[%clk 0:02:44]}  c5 {[%clk 0:02:39]} 15. Rfb1 {[%clk 0:02:29]}  cxd4 {[%clk 0:02:30]} 16. Bxd4 {[%clk 0:02:24]}  Bxd4 {[%clk 0:02:29]} 17. Nxd4 {[%clk 0:02:25]}  Rb8 {[%clk 0:02:28]} 18. Qe3 {[%clk 0:01:56]}  Nd7 {[%clk 0:02:25]} 19. Be2 {[%clk 0:01:51]}  Nc5 {[%clk 0:02:14]} 20. N4b3 {[%clk 0:01:50]}  Nxb3 {[%clk 0:02:03]} 21. Nxb3 {[%clk 0:01:51]}  Qc7 {[%clk 0:02:02]} 22. c5 {[%clk 0:01:47]}  Rfc8 {[%clk 0:01:43]} 23. cxd6 {[%clk 0:01:45]}  Qxd6 {[%clk 0:01:43]} 24. Na5 {[%clk 0:01:43]}  Ba8 {[%clk 0:01:41]} 25. Nc4 {[%clk 0:01:42]}  Qc7 {[%clk 0:01:33]} 26. Nb6 {[%clk 0:01:38]}  Rd8 {[%clk 0:01:24]} 27. Bxa6 {[%clk 0:01:35]}  Qc6 {[%clk 0:01:14]} 28. f3 {[%clk 0:01:12]}  Qc2 {[%clk 0:01:01]} 29. Rc1 {[%clk 0:01:06]}  Qb2 {[%clk 0:00:59]} 30. Rab1 {[%clk 0:01:04]}  Qa2 {[%clk 0:00:52]} 31. Bc4 {[%clk 0:01:03]}  Qd2 {[%clk 0:00:48]} 32. Qxd2 {[%clk 0:01:01]}  Rxd2 {[%clk 0:00:48]} 33. a5 {[%clk 0:01:02]}  Nc6 {[%clk 0:00:40]} 34. a6 {[%clk 0:00:55]}  Rbd8 {[%clk 0:00:39]} 35. Bf1 {[%clk 0:00:43]}  Ra2 {[%clk 0:00:31]} 36. Nxa8 {[%clk 0:00:41]} 1-0


[Site "https://www.chess.com"]

[Event "Titled Tuesday Blitz January 25 2022"]
[White "Willow, Jonah B"]
[Black "Kislinsky, Alexey"]
[WhiteFideId "438804"]
[BlackFideId "14108801"]
[WhiteElo "2261"]
[BlackElo "2335"]
[Result "1-0"]
[Round "07"]
[TimeControl "180+1"]
[Date "2022.01.26"]
[WhiteClock "0:00:19"]
[BlackClock "0:00:05"]

1. e4 {[%clk 0:03:00]}  c5 {[%clk 0:02:43]} 2. Nf3 {[%clk 0:03:01]}  Nc6 {[%clk 0:02:42]} 3. Nc3 {[%clk 0:03:01]}  g6 {[%clk 0:02:42]} 4. d4 {[%clk 0:03:01]}  cxd4 {[%clk 0:02:42]} 5. Nxd4 {[%clk 0:03:02]}  Bg7 {[%clk 0:02:42]} 6. Be3 {[%clk 0:03:03]}  Nf6 {[%clk 0:02:43]} 7. Bc4 {[%clk 0:03:03]}  O-O {[%clk 0:02:42]} 8. Bb3 {[%clk 0:03:04]}  Qa5 {[%clk 0:02:41]} 9. O-O {[%clk 0:02:55]}  d6 {[%clk 0:02:41]} 10. h3 {[%clk 0:02:53]}  Bd7 {[%clk 0:02:41]} 11. Qd2 {[%clk 0:02:39]}  Rac8 {[%clk 0:02:38]} 12. Rad1 {[%clk 0:02:38]}  Rfe8 {[%clk 0:02:37]} 13. Rfe1 {[%clk 0:02:38]}  Ne5 {[%clk 0:02:33]} 14. Qe2 {[%clk 0:02:33]}  Qa6 {[%clk 0:02:31]} 15. Qxa6 {[%clk 0:02:30]}  bxa6 {[%clk 0:02:31]} 16. Bc1 {[%clk 0:02:20]}  Nc4 {[%clk 0:02:20]} 17. f4 {[%clk 0:02:20]}  e5 {[%clk 0:02:12]} 18. Nf3 {[%clk 0:02:17]}  Be6 {[%clk 0:02:08]} 19. Bxc4 {[%clk 0:02:15]}  Bxc4 {[%clk 0:02:08]} 20. Rxd6 {[%clk 0:02:15]}  exf4 {[%clk 0:02:03]} 21. Bxf4 {[%clk 0:02:11]}  Nh5 {[%clk 0:02:02]} 22. Bd2 {[%clk 0:02:08]}  Bf8 {[%clk 0:01:52]} 23. Rd7 {[%clk 0:02:02]}  Nf6 {[%clk 0:01:40]} 24. Rb7 {[%clk 0:01:58]}  Bc5+ {[%clk 0:01:37]} 25. Kh1 {[%clk 0:01:50]}  Bf2 {[%clk 0:01:29]} 26. Rd1 {[%clk 0:01:41]}  Nxe4 {[%clk 0:01:29]} 27. Nxe4 {[%clk 0:01:42]}  Rxe4 {[%clk 0:01:29]} 28. Bc3 {[%clk 0:01:39]}  Bg3 {[%clk 0:01:16]} 29. Ng5 {[%clk 0:01:29]}  Re2 {[%clk 0:01:11]} 30. Rbd7 {[%clk 0:01:22]}  Rce8 {[%clk 0:00:59]} 31. Rd8 {[%clk 0:01:15]}  h6 {[%clk 0:00:56]} 32. Rxe8+ {[%clk 0:01:13]}  Rxe8 {[%clk 0:00:57]} 33. Ne4 {[%clk 0:01:14]}  Be5 {[%clk 0:00:47]} 34. Nf6+ {[%clk 0:01:14]}  Bxf6 {[%clk 0:00:47]} 35. Bxf6 {[%clk 0:01:15]}  g5 {[%clk 0:00:44]} 36. b3 {[%clk 0:01:15]}  Be6 {[%clk 0:00:42]} 37. c4 {[%clk 0:01:14]}  Kh7 {[%clk 0:00:43]} 38. Rd6 {[%clk 0:01:06]}  Kg6 {[%clk 0:00:42]} 39. Bd4 {[%clk 0:01:06]}  Kf5 {[%clk 0:00:40]} 40. Rxa6 {[%clk 0:01:06]}  Rd8 {[%clk 0:00:38]} 41. Bf2 {[%clk 0:01:03]}  Rd2 {[%clk 0:00:37]} 42. Kg1 {[%clk 0:01:03]}  Rd1+ {[%clk 0:00:30]} 43. Kh2 {[%clk 0:01:03]}  Rd2 {[%clk 0:00:31]} 44. Be3 {[%clk 0:01:00]}  Re2 {[%clk 0:00:30]} 45. Bd4 {[%clk 0:01:01]}  h5 {[%clk 0:00:29]} 46. Ra5+ {[%clk 0:01:00]}  Kf4 {[%clk 0:00:28]} 47. Bxa7 {[%clk 0:00:59]}  h4 {[%clk 0:00:24]} 48. Bb8+ {[%clk 0:00:59]}  Ke3 {[%clk 0:00:22]} 49. Rxg5 {[%clk 0:00:57]}  Kf2 {[%clk 0:00:19]} 50. Ba7+ {[%clk 0:00:54]}  Kf1 {[%clk 0:00:19]} 51. a4 {[%clk 0:00:51]}  f5 {[%clk 0:00:17]} 52. a5 {[%clk 0:00:50]}  f4 {[%clk 0:00:18]} 53. Kh1 {[%clk 0:00:42]}  Ra2 {[%clk 0:00:10]} 54. b4 {[%clk 0:00:37]}  Bxc4 {[%clk 0:00:07]} 55. Rf5 {[%clk 0:00:38]}  Bd5 {[%clk 0:00:03]} 56. Rxd5 {[%clk 0:00:34]}  f3 {[%clk 0:00:03]} 57. gxf3 {[%clk 0:00:27]}  Ke2 {[%clk 0:00:03]} 58. Kg2 {[%clk 0:00:21]}  Ke1+ {[%clk 0:00:03]} 59. Kg1 {[%clk 0:00:22]}  Ke2 {[%clk 0:00:03]} 60. Re5+ {[%clk 0:00:19]}  Kxf3 {[%clk 0:00:04]} 61. Re3+ {[%clk 0:00:20]}  Kf4 {[%clk 0:00:03]} 62. Kf1 {[%clk 0:00:18]}  Ra1+ {[%clk 0:00:03]} 63. Ke2 {[%clk 0:00:19]}  Ra2+ {[%clk 0:00:04]} 64. Kd3 {[%clk 0:00:18]}  Ra3+ {[%clk 0:00:05]} 65. Kc4 {[%clk 0:00:18]}  Ra2 {[%clk 0:00:05]} 66. Kb5 {[%clk 0:00:18]}  Rd2 {[%clk 0:00:04]} 67. a6 {[%clk 0:00:18]}  Rg2 {[%clk 0:00:04]} 68. Bc5 {[%clk 0:00:19]}  Rg3 {[%clk 0:00:05]} 69. a7 {[%clk 0:00:19]}  Rxe3 {[%clk 0:00:05]} 70. Bxe3+ {[%clk 0:00:19]} 1-0


[Site "https://www.chess.com"]

[Event "Titled Tuesday Blitz January 25 2022"]
[White "Zhigalko, Sergei"]
[Black "Xiong, Jeffery"]
[WhiteFideId "13502956"]
[BlackFideId "2047640"]
[WhiteElo "2662"]
[BlackElo "2727"]
[Result "1-0"]
[Round "07"]
[TimeControl "180+1"]
[Date "2022.01.26"]
[WhiteClock "0:00:02"]
[BlackClock "0:00:22"]

1. e4 {[%clk 0:03:00]}  c6 {[%clk 0:02:59]} 2. d4 {[%clk 0:03:01]}  d5 {[%clk 0:02:59]} 3. e5 {[%clk 0:03:01]}  Bf5 {[%clk 0:02:59]} 4. Nf3 {[%clk 0:03:01]}  e6 {[%clk 0:02:59]} 5. Be2 {[%clk 0:03:02]}  Ne7 {[%clk 0:02:58]} 6. O-O {[%clk 0:03:00]}  h6 {[%clk 0:02:55]} 7. Nbd2 {[%clk 0:03:00]}  Nd7 {[%clk 0:02:55]} 8. a4 {[%clk 0:02:52]}  Bh7 {[%clk 0:02:56]} 9. a5 {[%clk 0:02:52]}  Ng6 {[%clk 0:02:56]} 10. Re1 {[%clk 0:02:47]}  Be7 {[%clk 0:02:57]} 11. c3 {[%clk 0:02:46]}  O-O {[%clk 0:02:57]} 12. b4 {[%clk 0:02:45]}  f6 {[%clk 0:02:56]} 13. exf6 {[%clk 0:02:33]}  Bxf6 {[%clk 0:02:57]} 14. Bd3 {[%clk 0:02:33]}  Qe8 {[%clk 0:02:30]} 15. Qc2 {[%clk 0:02:30]}  Qf7 {[%clk 0:02:30]} 16. Nb3 {[%clk 0:02:06]}  Rae8 {[%clk 0:02:27]} 17. Nc5 {[%clk 0:02:01]}  Nxc5 {[%clk 0:01:49]} 18. bxc5 {[%clk 0:02:01]}  Kh8 {[%clk 0:01:49]} 19. a6 {[%clk 0:01:51]}  bxa6 {[%clk 0:01:41]} 20. Rxa6 {[%clk 0:01:49]}  e5 {[%clk 0:01:42]} 21. dxe5 {[%clk 0:01:26]}  Nxe5 {[%clk 0:01:43]} 22. Nxe5 {[%clk 0:01:22]}  Rxe5 {[%clk 0:01:17]} 23. Rxe5 {[%clk 0:01:02]}  Bxd3 {[%clk 0:01:16]} 24. Qxd3 {[%clk 0:01:03]}  Bxe5 {[%clk 0:01:16]} 25. Be3 {[%clk 0:00:57]}  Qb7 {[%clk 0:01:15]} 26. g3 {[%clk 0:00:52]}  Bxc3 {[%clk 0:01:02]} 27. Bxh6 {[%clk 0:00:47]}  Qb2 {[%clk 0:01:01]} 28. Be3 {[%clk 0:00:35]}  Be1 {[%clk 0:01:01]} 29. Qf1 {[%clk 0:00:30]}  Qc3 {[%clk 0:01:01]} 30. Rxa7 {[%clk 0:00:23]}  Re8 {[%clk 0:01:01]} 31. Ra4 {[%clk 0:00:19]}  Bd2 {[%clk 0:00:58]} 32. Rh4+ {[%clk 0:00:09]}  Kg8 {[%clk 0:00:58]} 33. Qh3 {[%clk 0:00:10]}  Bxe3 {[%clk 0:00:40]} 34. Rh8+ {[%clk 0:00:10]}  Kf7 {[%clk 0:00:41]} 35. Qh5+ {[%clk 0:00:04]}  g6 {[%clk 0:00:20]} 36. Qf3+ {[%clk 0:00:03]}  Kg7 {[%clk 0:00:20]} 37. Rxe8 {[%clk 0:00:03]}  Qc1+ {[%clk 0:00:21]} 38. Kg2 {[%clk 0:00:03]}  Bxc5 {[%clk 0:00:22]} 39. Re6 {[%clk 0:00:02]} 1-0


[Site "https://www.chess.com"]

[Event "Titled Tuesday Blitz January 25 2022"]
[White "Abarca Gonzalez, Nicolas"]
[Black "Cunjalo, Faris"]
[WhiteFideId "3409422"]
[BlackFideId "14410710"]
[WhiteElo "2504"]
[BlackElo "2263"]
[Result "0-1"]
[Round "08"]
[TimeControl "180+1"]
[Date "2022.01.26"]
[WhiteClock "0:02:05"]
[BlackClock "0:01:49"]

1. e4 {[%clk 0:03:00]}  c6 {[%clk 0:02:59]} 2. d4 {[%clk 0:03:00]}  d5 {[%clk 0:03:00]} 3. exd5 {[%clk 0:03:01]}  cxd5 {[%clk 0:03:00]} 4. c4 {[%clk 0:03:02]}  Nf6 {[%clk 0:03:00]} 5. Nc3 {[%clk 0:03:03]}  Nc6 {[%clk 0:03:01]} 6. Nf3 {[%clk 0:03:04]}  g6 {[%clk 0:02:51]} 7. cxd5 {[%clk 0:03:04]}  Nxd5 {[%clk 0:02:51]} 8. Bc4 {[%clk 0:02:50]}  Nxc3 {[%clk 0:02:44]} 9. bxc3 {[%clk 0:02:51]}  Bg7 {[%clk 0:02:44]} 10. h4 {[%clk 0:02:45]}  h6 {[%clk 0:02:29]} 11. h5 {[%clk 0:02:38]}  g5 {[%clk 0:02:29]} 12. Qd3 {[%clk 0:02:30]}  Na5 {[%clk 0:02:07]} 13. Bb5+ {[%clk 0:02:17]}  Bd7 {[%clk 0:02:07]} 14. Qf5 {[%clk 0:02:06]}  Nc6 {[%clk 0:01:49]} 15. Qf4 {[%clk 0:02:05]}  gxf4 {[%clk 0:01:49]} 0-1


[Site "https://www.chess.com"]

[Event "Titled Tuesday Blitz January 25 2022"]
[White "Babazada, Khazar"]
[Black "Vasquez Schroeder, Rodrigo"]
[WhiteFideId "13413554"]
[BlackFideId "3400042"]
[WhiteElo "2926"]
[BlackElo "2872"]
[Result "1-0"]
[Round "08"]
[TimeControl "180+1"]
[Date "2022.01.26"]
[WhiteClock "0:00:44"]
[BlackClock "0:00:47"]

1. Nf3 {[%clk 0:03:00]}  d5 {[%clk 0:02:58]} 2. g3 {[%clk 0:03:01]}  g6 {[%clk 0:02:58]} 3. Bg2 {[%clk 0:03:02]}  Bg7 {[%clk 0:02:58]} 4. d4 {[%clk 0:03:02]}  Nf6 {[%clk 0:02:58]} 5. O-O {[%clk 0:03:03]}  O-O {[%clk 0:02:58]} 6. c4 {[%clk 0:03:03]}  c6 {[%clk 0:02:58]} 7. b3 {[%clk 0:03:01]}  a5 {[%clk 0:02:54]} 8. Nc3 {[%clk 0:02:57]}  Be6 {[%clk 0:02:43]} 9. c5 {[%clk 0:02:56]}  Nbd7 {[%clk 0:02:39]} 10. Bf4 {[%clk 0:02:50]}  Bf5 {[%clk 0:02:35]} 11. Nh4 {[%clk 0:02:45]}  Be6 {[%clk 0:02:32]} 12. Qd2 {[%clk 0:02:42]}  b6 {[%clk 0:02:27]} 13. cxb6 {[%clk 0:02:42]}  Nxb6 {[%clk 0:02:28]} 14. Rac1 {[%clk 0:02:42]}  Rc8 {[%clk 0:02:26]} 15. Bh6 {[%clk 0:02:41]}  Nfd7 {[%clk 0:02:23]} 16. Bxg7 {[%clk 0:02:38]}  Kxg7 {[%clk 0:02:24]} 17. f4 {[%clk 0:02:38]}  f6 {[%clk 0:02:19]} 18. f5 {[%clk 0:02:38]}  Bf7 {[%clk 0:02:19]} 19. fxg6 {[%clk 0:02:35]}  hxg6 {[%clk 0:02:18]} 20. e4 {[%clk 0:02:31]}  e5 {[%clk 0:02:13]} 21. dxe5 {[%clk 0:02:12]}  Nxe5 {[%clk 0:02:12]} 22. Rcd1 {[%clk 0:01:54]}  Qe7 {[%clk 0:02:04]} 23. Qf2 {[%clk 0:01:54]}  Nbd7 {[%clk 0:01:42]} 24. exd5 {[%clk 0:01:53]}  cxd5 {[%clk 0:01:42]} 25. Nxd5 {[%clk 0:01:52]}  Bxd5 {[%clk 0:01:42]} 26. Rxd5 {[%clk 0:01:53]}  Rc5 {[%clk 0:01:33]} 27. Rd4 {[%clk 0:01:48]}  Rfc8 {[%clk 0:01:31]} 28. Be4 {[%clk 0:01:26]}  Qe6 {[%clk 0:01:12]} 29. Rfd1 {[%clk 0:01:21]}  Rc1 {[%clk 0:01:12]} 30. Nxg6 {[%clk 0:01:05]}  Ng4 {[%clk 0:00:54]} 31. Qd2 {[%clk 0:00:45]}  Rxd1+ {[%clk 0:00:51]} 32. Qxd1 {[%clk 0:00:46]}  Nc5 {[%clk 0:00:47]} 33. Nf4 {[%clk 0:00:44]} 1-0


[Site "https://www.chess.com"]